[Event "Titled Tuesday Blitz November 08 Early 2022"]
[White "Prem, Pranav"]
[Black "Jegorovas, Aleksandras"]
[WhiteFideId "30901057"]
[BlackFideId "12801950"]
[WhiteElo "1970"]
[BlackElo "2247"]
[Result "0-1"]
[Round "02"]
[TimeControl "180+1"]
[Date "2022.11.09"]
[WhiteClock "0:00:04"]
[BlackClock "0:00:56"]

1. d4 {[%clk 0:03:00]}  Nf6 {[%clk 0:02:57]} 2. c4 {[%clk 0:03:00]}  e6 {[%clk 0:02:57]} 3. Nf3 {[%clk 0:03:00]}  Nc6 {[%clk 0:02:57]} 4. Nc3 {[%clk 0:02:55]}  Bb4 {[%clk 0:02:56]} 5. Qc2 {[%clk 0:02:56]}  d5 {[%clk 0:02:50]} 6. cxd5 {[%clk 0:02:48]}  exd5 {[%clk 0:02:48]} 7. Bg5 {[%clk 0:02:43]}  h6 {[%clk 0:02:47]} 8. Bf4 {[%clk 0:02:31]}  g5 {[%clk 0:02:44]} 9. Be5 {[%clk 0:02:10]}  g4 {[%clk 0:02:36]} 10. Nd2 {[%clk 0:02:07]}  Nxe5 {[%clk 0:02:34]} 11. dxe5 {[%clk 0:02:08]}  Nd7 {[%clk 0:02:26]} 12. Nxd5 {[%clk 0:01:59]}  Bxd2+ {[%clk 0:02:27]} 13. Qxd2 {[%clk 0:01:58]}  Nxe5 {[%clk 0:02:26]} 14. e4 {[%clk 0:01:42]}  c6 {[%clk 0:02:22]} 15. Qc3 {[%clk 0:01:39]}  f6 {[%clk 0:02:16]} 16. Ne3 {[%clk 0:01:08]}  Be6 {[%clk 0:02:13]} 17. Rd1 {[%clk 0:01:08]}  Qe7 {[%clk 0:02:12]} 18. Bc4 {[%clk 0:01:05]}  O-O {[%clk 0:01:57]} 19. Nf5 {[%clk 0:00:55]}  Qe8 {[%clk 0:01:39]} 20. Bxe6+ {[%clk 0:00:48]}  Qxe6 {[%clk 0:01:39]} 21. Nxh6+ {[%clk 0:00:41]}  Kh7 {[%clk 0:01:39]} 22. Nf5 {[%clk 0:00:41]}  Rad8 {[%clk 0:01:34]} 23. O-O {[%clk 0:00:39]}  Qxa2 {[%clk 0:01:34]} 24. Qe3 {[%clk 0:00:35]}  Qf7 {[%clk 0:01:29]} 25. Qh6+ {[%clk 0:00:26]}  Kg8 {[%clk 0:01:29]} 26. Qe3 {[%clk 0:00:19]}  Kh7 {[%clk 0:01:23]} 27. Qh6+ {[%clk 0:00:19]}  Kg8 {[%clk 0:01:23]} 28. Qf4 {[%clk 0:00:17]}  Qh5 {[%clk 0:01:17]} 29. Nh6+ {[%clk 0:00:16]}  Kh7 {[%clk 0:01:14]} 30. Nf5 {[%clk 0:00:17]}  g3 {[%clk 0:01:09]} 31. Qxg3 {[%clk 0:00:07]}  Rg8 {[%clk 0:01:01]} 32. Qh4 {[%clk 0:00:05]}  Nf3+ {[%clk 0:00:57]} 33. Kh1 {[%clk 0:00:04]}  Nxh4 {[%clk 0:00:57]} 34. Nxh4 {[%clk 0:00:04]}  Rxd1 {[%clk 0:00:56]} 0-1


[Site "https://www.chess.com"]

[Event "Titled Tuesday Blitz November 08 Early 2022"]
[White "Raahul V S"]
[Black "Salinas Herrera, Pablo"]
[WhiteFideId "25035525"]
[BlackFideId "3407128"]
[WhiteElo "2233"]
[BlackElo "2557"]
[Result "0-1"]
[Round "02"]
[TimeControl "180+1"]
[Date "2022.11.09"]
[WhiteClock "0:01:57"]
[BlackClock "0:01:39"]

1. e4 {[%clk 0:02:58]}  c5 {[%clk 0:02:58]} 2. c4 {[%clk 0:02:57]}  Nc6 {[%clk 0:02:57]} 3. Nc3 {[%clk 0:02:57]}  g6 {[%clk 0:02:57]} 4. d3 {[%clk 0:02:56]}  Bg7 {[%clk 0:02:57]} 5. Nge2 {[%clk 0:02:56]}  d6 {[%clk 0:02:57]} 6. g3 {[%clk 0:02:56]}  h5 {[%clk 0:02:57]} 7. Bg2 {[%clk 0:02:57]}  h4 {[%clk 0:02:57]} 8. Bg5 {[%clk 0:02:56]}  h3 {[%clk 0:02:56]} 9. Bf1 {[%clk 0:02:53]}  Bg4 {[%clk 0:02:56]} 10. Qd2 {[%clk 0:02:51]}  Ne5 {[%clk 0:02:29]} 11. O-O-O {[%clk 0:02:48]}  a6 {[%clk 0:02:17]} 12. Bf4 {[%clk 0:02:21]}  Nf3 {[%clk 0:02:14]} 13. Qe3 {[%clk 0:02:21]}  e5 {[%clk 0:02:13]} 14. Kb1 {[%clk 0:02:17]}  exf4 {[%clk 0:02:13]} 15. gxf4 {[%clk 0:02:17]}  Nd4 {[%clk 0:02:08]} 16. Rg1 {[%clk 0:02:12]}  Bxe2 {[%clk 0:02:06]} 17. Bxe2 {[%clk 0:02:12]}  Ne7 {[%clk 0:02:01]} 18. f5 {[%clk 0:02:12]}  Nxe2 {[%clk 0:01:54]} 19. Nxe2 {[%clk 0:02:10]}  Qb6 {[%clk 0:01:52]} 20. Rd2 {[%clk 0:02:10]}  O-O-O {[%clk 0:01:48]} 21. Qg5 {[%clk 0:02:07]}  Bh6 {[%clk 0:01:42]} 22. Qxe7 {[%clk 0:02:07]}  Bxd2 {[%clk 0:01:43]} 23. Qxf7 {[%clk 0:02:07]}  gxf5 {[%clk 0:01:43]} 24. Qxf5+ {[%clk 0:02:06]}  Kb8 {[%clk 0:01:44]} 25. Qd5 {[%clk 0:01:58]}  Qc6 {[%clk 0:01:43]} 26. f4 {[%clk 0:01:56]}  Qxd5 {[%clk 0:01:42]} 27. cxd5 {[%clk 0:01:57]}  Rhg8 {[%clk 0:01:39]} 0-1


[Site "https://www.chess.com"]

[Event "Titled Tuesday Blitz November 08 Early 2022"]
[White "Remizov, Yaroslav"]
[Black "Savic, Miomir"]
[WhiteFideId "34134015"]
[BlackFideId "934550"]
[WhiteElo "2414"]
[BlackElo "2122"]
[Result "1-0"]
[Round "02"]
[TimeControl "180+1"]
[Date "2022.11.09"]
[WhiteClock "0:01:17"]
[BlackClock "0:00:59"]

1. a3 {[%clk 0:03:00]}  d5 {[%clk 0:02:59]} 2. b3 {[%clk 0:03:01]}  e5 {[%clk 0:02:58]} 3. c3 {[%clk 0:03:02]}  Nd7 {[%clk 0:02:59]} 4. Ra2 {[%clk 0:03:02]}  Ngf6 {[%clk 0:02:57]} 5. d3 {[%clk 0:03:02]}  c5 {[%clk 0:02:58]} 6. e3 {[%clk 0:03:03]}  Bd6 {[%clk 0:02:57]} 7. f3 {[%clk 0:03:03]}  O-O {[%clk 0:02:57]} 8. g4 {[%clk 0:03:03]}  Ne8 {[%clk 0:02:55]} 9. h4 {[%clk 0:03:03]}  Nb6 {[%clk 0:02:53]} 10. Rg2 {[%clk 0:02:56]}  Be6 {[%clk 0:02:50]} 11. Ne2 {[%clk 0:02:54]}  Qc7 {[%clk 0:02:50]} 12. Nd2 {[%clk 0:02:51]}  Rc8 {[%clk 0:02:49]} 13. c4 {[%clk 0:02:48]}  a5 {[%clk 0:02:46]} 14. e4 {[%clk 0:02:41]}  d4 {[%clk 0:02:45]} 15. a4 {[%clk 0:02:37]}  Nd7 {[%clk 0:02:29]} 16. Ng3 {[%clk 0:02:35]}  g6 {[%clk 0:02:28]} 17. Nf5 {[%clk 0:02:30]}  Nef6 {[%clk 0:02:11]} 18. Be2 {[%clk 0:02:23]}  Kh8 {[%clk 0:02:07]} 19. Nxd6 {[%clk 0:02:19]}  Qxd6 {[%clk 0:02:07]} 20. Nf1 {[%clk 0:02:20]}  Ng8 {[%clk 0:02:05]} 21. Ng3 {[%clk 0:02:19]}  Nb8 {[%clk 0:02:00]} 22. h5 {[%clk 0:02:17]}  g5 {[%clk 0:02:00]} 23. Bxg5 {[%clk 0:02:15]}  h6 {[%clk 0:01:59]} 24. Bd2 {[%clk 0:02:15]}  f6 {[%clk 0:01:59]} 25. Bxa5 {[%clk 0:02:10]}  b6 {[%clk 0:01:56]} 26. Bd2 {[%clk 0:02:10]}  Nc6 {[%clk 0:01:57]} 27. O-O {[%clk 0:02:05]}  Kh7 {[%clk 0:01:57]} 28. Qc1 {[%clk 0:02:00]}  Nb4 {[%clk 0:01:52]} 29. f4 {[%clk 0:01:56]}  Qe7 {[%clk 0:01:49]} 30. Nf5 {[%clk 0:01:53]}  Bxf5 {[%clk 0:01:48]} 31. gxf5 {[%clk 0:01:53]}  Rf7 {[%clk 0:01:45]} 32. Rg6 {[%clk 0:01:53]}  Rg7 {[%clk 0:01:45]} 33. Kh2 {[%clk 0:01:54]}  Rxg6 {[%clk 0:01:44]} 34. fxg6+ {[%clk 0:01:49]}  Kg7 {[%clk 0:01:44]} 35. fxe5 {[%clk 0:01:45]}  Qxe5+ {[%clk 0:01:44]} 36. Bf4 {[%clk 0:01:46]}  Qe6 {[%clk 0:01:44]} 37. Qe1 {[%clk 0:01:43]}  Nc2 {[%clk 0:01:37]} 38. Qg3 {[%clk 0:01:41]}  Re8 {[%clk 0:01:26]} 39. Bg4 {[%clk 0:01:36]}  Qe7 {[%clk 0:01:19]} 40. e5 {[%clk 0:01:36]}  Ne3 {[%clk 0:01:13]} 41. Rf3 {[%clk 0:01:20]}  fxe5 {[%clk 0:01:00]} 42. Bxe5+ {[%clk 0:01:18]}  Qxe5 {[%clk 0:00:59]} 43. Rf7+ {[%clk 0:01:17]} 1-0


[Site "https://www.chess.com"]

[Event "Titled Tuesday Blitz November 08 Early 2022"]
[White "Rios Escobar, Adan"]
[Black "Orozbaev, Eldiar"]
[WhiteFideId "3403645"]
[BlackFideId "13802240"]
[WhiteElo "2347"]
[BlackElo "2244"]
[Result "0-1"]
[Round "02"]
[TimeControl "180+1"]
[Date "2022.11.09"]
[WhiteClock "0:00:03"]
[BlackClock "0:00:55"]

1. d4 {[%clk 0:02:55]}  Nf6 {[%clk 0:02:53]} 2. g3 {[%clk 0:02:53]}  c5 {[%clk 0:02:53]} 3. d5 {[%clk 0:02:53]}  d6 {[%clk 0:02:53]} 4. c4 {[%clk 0:02:53]}  b5 {[%clk 0:02:53]} 5. cxb5 {[%clk 0:02:52]}  a6 {[%clk 0:02:53]} 6. bxa6 {[%clk 0:02:53]}  Nxa6 {[%clk 0:02:54]} 7. Nc3 {[%clk 0:02:47]}  g6 {[%clk 0:02:54]} 8. Nf3 {[%clk 0:02:44]}  Bg7 {[%clk 0:02:54]} 9. Bg2 {[%clk 0:02:44]}  O-O {[%clk 0:02:55]} 10. O-O {[%clk 0:02:45]}  Bb7 {[%clk 0:02:56]} 11. Ne1 {[%clk 0:02:29]}  Qb6 {[%clk 0:02:41]} 12. Nc2 {[%clk 0:02:24]}  Rfb8 {[%clk 0:02:41]} 13. Rb1 {[%clk 0:02:20]}  Nc7 {[%clk 0:02:41]} 14. Ne3 {[%clk 0:02:14]}  Nd7 {[%clk 0:02:35]} 15. Qc2 {[%clk 0:02:11]}  Nb5 {[%clk 0:02:31]} 16. Nxb5 {[%clk 0:02:07]}  Qxb5 {[%clk 0:02:32]} 17. b3 {[%clk 0:02:03]}  Nb6 {[%clk 0:02:12]} 18. Rd1 {[%clk 0:01:57]}  Ba6 {[%clk 0:02:09]} 19. Bf1 {[%clk 0:01:56]}  Qd7 {[%clk 0:02:03]} 20. h4 {[%clk 0:01:50]}  h5 {[%clk 0:02:01]} 21. Bb2 {[%clk 0:01:45]}  Nc8 {[%clk 0:01:57]} 22. Bxg7 {[%clk 0:01:44]}  Kxg7 {[%clk 0:01:57]} 23. Kh2 {[%clk 0:01:38]}  Na7 {[%clk 0:01:57]} 24. Bh3 {[%clk 0:01:36]}  Qb7 {[%clk 0:01:55]} 25. Rd2 {[%clk 0:01:21]}  Nb5 {[%clk 0:01:53]} 26. Nc4 {[%clk 0:01:17]}  Nd4 {[%clk 0:01:51]} 27. Qd3 {[%clk 0:01:00]}  Bb5 {[%clk 0:01:36]} 28. Rdb2 {[%clk 0:00:59]}  Bd7 {[%clk 0:01:32]} 29. Bg2 {[%clk 0:00:56]}  Bf5 {[%clk 0:01:30]} 30. e4 {[%clk 0:00:56]}  Bg4 {[%clk 0:01:30]} 31. f3 {[%clk 0:00:55]}  Bd7 {[%clk 0:01:30]} 32. f4 {[%clk 0:00:52]}  Qc7 {[%clk 0:01:27]} 33. e5 {[%clk 0:00:51]}  Bf5 {[%clk 0:01:25]} 34. Be4 {[%clk 0:00:51]}  Rb4 {[%clk 0:01:23]} 35. Bxf5 {[%clk 0:00:43]}  Nxf5 {[%clk 0:01:24]} 36. Re1 {[%clk 0:00:37]}  Rab8 {[%clk 0:01:17]} 37. Rbe2 {[%clk 0:00:36]}  Nd4 {[%clk 0:01:15]} 38. Re4 {[%clk 0:00:36]}  Ra8 {[%clk 0:01:10]} 39. exd6 {[%clk 0:00:28]}  Rxa2+ {[%clk 0:01:05]} 40. R1e2 {[%clk 0:00:15]}  Rxe2+ {[%clk 0:00:54]} 41. Rxe2 {[%clk 0:00:15]}  exd6 {[%clk 0:00:55]} 42. Re4 {[%clk 0:00:11]}  Rxb3 {[%clk 0:00:55]} 43. Qd2 {[%clk 0:00:08]}  Nf3+ {[%clk 0:00:55]} 44. Kh3 {[%clk 0:00:05]}  Nxd2 {[%clk 0:00:55]} 45. Nxd2 {[%clk 0:00:06]}  Rb2 {[%clk 0:00:55]} 46. Nc4 {[%clk 0:00:06]}  Qc8+ {[%clk 0:00:55]} 47. f5 {[%clk 0:00:02]}  Qxf5+ {[%clk 0:00:55]} 48. g4 {[%clk 0:00:03]}  Qf3# {[%clk 0:00:55]} 0-1


[Site "https://www.chess.com"]

[Event "Titled Tuesday Blitz November 08 Early 2022"]
[White "Ristic, Nebojsa B"]
[Black "Baskakov, Egor"]
[WhiteFideId "935468"]
[BlackFideId "24197866"]
[WhiteElo "2320"]
[BlackElo "2211"]
[Result "0-1"]
[Round "02"]
[TimeControl "180+1"]
[Date "2022.11.09"]
[WhiteClock "0:01:11"]
[BlackClock "0:01:42"]

1. d4 {[%clk 0:03:00]}  Nf6 {[%clk 0:02:59]} 2. Bf4 {[%clk 0:03:01]}  e6 {[%clk 0:02:58]} 3. e3 {[%clk 0:02:57]}  d5 {[%clk 0:02:57]} 4. Nf3 {[%clk 0:02:56]}  Be7 {[%clk 0:02:57]} 5. h3 {[%clk 0:02:56]}  O-O {[%clk 0:02:57]} 6. Nbd2 {[%clk 0:02:56]}  Ne4 {[%clk 0:02:57]} 7. Nxe4 {[%clk 0:02:50]}  dxe4 {[%clk 0:02:58]} 8. Nd2 {[%clk 0:02:50]}  f5 {[%clk 0:02:58]} 9. Be2 {[%clk 0:02:47]}  Bd6 {[%clk 0:02:58]} 10. Bxd6 {[%clk 0:02:42]}  cxd6 {[%clk 0:02:58]} 11. O-O {[%clk 0:02:41]}  d5 {[%clk 0:02:58]} 12. c4 {[%clk 0:02:41]}  Nc6 {[%clk 0:02:58]} 13. Rc1 {[%clk 0:02:39]}  f4 {[%clk 0:02:57]} 14. Bg4 {[%clk 0:02:32]}  Qg5 {[%clk 0:02:54]} 15. a3 {[%clk 0:02:15]}  f3 {[%clk 0:02:40]} 16. Kh2 {[%clk 0:01:52]}  fxg2 {[%clk 0:02:28]} 17. Rg1 {[%clk 0:01:49]}  Rxf2 {[%clk 0:02:23]} 18. cxd5 {[%clk 0:01:44]}  Qxe3 {[%clk 0:02:11]} 19. Rxg2 {[%clk 0:01:37]}  Rxg2+ {[%clk 0:02:07]} 20. Kxg2 {[%clk 0:01:38]}  exd5 {[%clk 0:02:07]} 21. Nf1 {[%clk 0:01:32]}  Qg5 {[%clk 0:01:57]} 22. Ng3 {[%clk 0:01:30]}  Bxg4 {[%clk 0:01:56]} 23. hxg4 {[%clk 0:01:31]}  Nxd4 {[%clk 0:01:54]} 24. Qxd4 {[%clk 0:01:22]}  Qxc1 {[%clk 0:01:53]} 25. Qxd5+ {[%clk 0:01:22]}  Kh8 {[%clk 0:01:54]} 26. Nxe4 {[%clk 0:01:21]}  Qxb2+ {[%clk 0:01:53]} 27. Kh3 {[%clk 0:01:17]}  Qxa3+ {[%clk 0:01:53]} 28. Kh4 {[%clk 0:01:18]}  Qe7+ {[%clk 0:01:52]} 29. Kh3 {[%clk 0:01:17]}  Rd8 {[%clk 0:01:46]} 30. Qc4 {[%clk 0:01:16]}  Qe5 {[%clk 0:01:43]} 31. Qc7 {[%clk 0:01:11]}  Qxc7 {[%clk 0:01:42]} 0-1


[Site "https://www.chess.com"]

[Event "Titled Tuesday Blitz November 08 Early 2022"]
[White "Ronka, Erik"]
[Black "Adnan, Habib"]
[WhiteFideId "505080"]
[BlackFideId "11202270"]
[WhiteElo "2264"]
[BlackElo "2110"]
[Result "1-0"]
[Round "02"]
[TimeControl "180+1"]
[Date "2022.11.09"]
[WhiteClock "0:00:14"]
[BlackClock "0:00:12"]

1. e4 {[%clk 0:03:00]}  c5 {[%clk 0:02:59]} 2. Nf3 {[%clk 0:02:59]}  Nc6 {[%clk 0:02:59]} 3. d4 {[%clk 0:02:59]}  cxd4 {[%clk 0:03:00]} 4. Nxd4 {[%clk 0:02:59]}  Nf6 {[%clk 0:03:00]} 5. Nc3 {[%clk 0:02:58]}  e5 {[%clk 0:03:00]} 6. Ndb5 {[%clk 0:02:58]}  d6 {[%clk 0:03:01]} 7. Bg5 {[%clk 0:02:59]}  a6 {[%clk 0:03:00]} 8. Na3 {[%clk 0:03:00]}  b5 {[%clk 0:03:00]} 9. Bxf6 {[%clk 0:03:00]}  gxf6 {[%clk 0:03:00]} 10. Nd5 {[%clk 0:03:01]}  f5 {[%clk 0:03:00]} 11. Bd3 {[%clk 0:02:58]}  Be6 {[%clk 0:02:59]} 12. c3 {[%clk 0:02:58]}  Bg7 {[%clk 0:02:54]} 13. Nxb5 {[%clk 0:02:58]}  axb5 {[%clk 0:02:52]} 14. Bxb5 {[%clk 0:02:59]}  Bd7 {[%clk 0:02:53]} 15. exf5 {[%clk 0:02:58]}  O-O {[%clk 0:02:43]} 16. O-O {[%clk 0:02:58]}  Rc8 {[%clk 0:02:38]} 17. Qg4 {[%clk 0:02:33]}  Kh8 {[%clk 0:02:37]} 18. a4 {[%clk 0:02:30]}  f6 {[%clk 0:02:01]} 19. Qe4 {[%clk 0:02:26]}  Na5 {[%clk 0:01:50]} 20. Bxd7 {[%clk 0:02:22]}  Qxd7 {[%clk 0:01:49]} 21. Rfd1 {[%clk 0:02:08]}  Rc4 {[%clk 0:01:41]} 22. Qe2 {[%clk 0:01:58]}  Qxf5 {[%clk 0:01:02]} 23. Ne3 {[%clk 0:01:53]}  Re4 {[%clk 0:00:57]} 24. f3 {[%clk 0:01:34]}  Rxe3 {[%clk 0:00:53]} 25. Qxe3 {[%clk 0:01:35]}  Qe6 {[%clk 0:00:31]} 26. b4 {[%clk 0:01:31]}  Nc4 {[%clk 0:00:30]} 27. Qe4 {[%clk 0:01:28]}  f5 {[%clk 0:00:28]} 28. Qd5 {[%clk 0:01:28]}  Qxd5 {[%clk 0:00:27]} 29. Rxd5 {[%clk 0:01:29]}  Bh6 {[%clk 0:00:27]} 30. a5 {[%clk 0:01:21]}  e4 {[%clk 0:00:23]} 31. a6 {[%clk 0:01:10]}  Ra8 {[%clk 0:00:20]} 32. b5 {[%clk 0:01:06]}  exf3 {[%clk 0:00:18]} 33. gxf3 {[%clk 0:01:07]}  Be3+ {[%clk 0:00:18]} 34. Kf1 {[%clk 0:00:59]}  f4 {[%clk 0:00:18]} 35. Ke2 {[%clk 0:00:35]}  Rg8 {[%clk 0:00:16]} 36. Kd3 {[%clk 0:00:29]}  Nb6 {[%clk 0:00:15]} 37. Rxd6 {[%clk 0:00:23]}  Rc8 {[%clk 0:00:15]} 38. a7 {[%clk 0:00:15]}  Ra8 {[%clk 0:00:14]} 39. c4 {[%clk 0:00:14]}  Nc8 {[%clk 0:00:13]} 40. Rd8+ {[%clk 0:00:14]}  Kg7 {[%clk 0:00:13]} 41. Rd7+ {[%clk 0:00:14]}  Kf6 {[%clk 0:00:12]} 42. Ra6+ {[%clk 0:00:14]}  Ke5 {[%clk 0:00:12]} 43. Rd5# {[%clk 0:00:14]} 1-0


[Site "https://www.chess.com"]

[Event "Titled Tuesday Blitz November 08 Early 2022"]
[White "Roque Sola, Gisela"]
[Black "Wieczorek, Oskar"]
[WhiteFideId "5120241"]
[BlackFideId "1133950"]
[WhiteElo "1961"]
[BlackElo "2404"]
[Result "0-1"]
[Round "02"]
[TimeControl "180+1"]
[Date "2022.11.09"]
[WhiteClock "0:01:31"]
[BlackClock "0:02:16"]

1. e4 {[%clk 0:03:00]}  c5 {[%clk 0:02:59]} 2. Nf3 {[%clk 0:03:01]}  e6 {[%clk 0:02:58]} 3. d4 {[%clk 0:03:01]}  cxd4 {[%clk 0:02:59]} 4. Nxd4 {[%clk 0:03:01]}  Nf6 {[%clk 0:03:00]} 5. Nc3 {[%clk 0:03:01]}  d6 {[%clk 0:03:00]} 6. Be3 {[%clk 0:02:56]}  a6 {[%clk 0:03:00]} 7. Be2 {[%clk 0:02:54]}  Qc7 {[%clk 0:03:00]} 8. O-O {[%clk 0:02:52]}  b5 {[%clk 0:03:00]} 9. a3 {[%clk 0:02:52]}  Bb7 {[%clk 0:03:01]} 10. Qd3 {[%clk 0:02:35]}  Nbd7 {[%clk 0:03:00]} 11. Nb3 {[%clk 0:02:33]}  Be7 {[%clk 0:02:57]} 12. Rad1 {[%clk 0:02:31]}  O-O {[%clk 0:02:52]} 13. f4 {[%clk 0:02:30]}  Rfd8 {[%clk 0:02:48]} 14. Bf3 {[%clk 0:02:29]}  Nc5 {[%clk 0:02:47]} 15. Nxc5 {[%clk 0:02:27]}  dxc5 {[%clk 0:02:48]} 16. Qe2 {[%clk 0:02:26]}  b4 {[%clk 0:02:48]} 17. axb4 {[%clk 0:02:22]}  cxb4 {[%clk 0:02:49]} 18. Na4 {[%clk 0:02:20]}  Rxd1 {[%clk 0:02:46]} 19. Rxd1 {[%clk 0:02:19]}  Bxe4 {[%clk 0:02:46]} 20. Bxe4 {[%clk 0:02:05]}  Nxe4 {[%clk 0:02:46]} 21. Bd4 {[%clk 0:01:49]}  Qc6 {[%clk 0:02:39]} 22. Nb6 {[%clk 0:01:41]}  Rd8 {[%clk 0:02:39]} 23. c3 {[%clk 0:01:39]}  bxc3 {[%clk 0:02:35]} 24. bxc3 {[%clk 0:01:38]}  Nxc3 {[%clk 0:02:33]} 25. Bxc3 {[%clk 0:01:37]}  Qxc3 {[%clk 0:02:19]} 26. Rxd8+ {[%clk 0:01:36]}  Bxd8 {[%clk 0:02:20]} 27. Nc4 {[%clk 0:01:34]}  Qd4+ {[%clk 0:02:17]} 28. Kh1 {[%clk 0:01:31]}  Qa1+ {[%clk 0:02:16]} 0-1


[Site "https://www.chess.com"]

[Event "Titled Tuesday Blitz November 08 Early 2022"]
[White "Rudzinska, Michalina"]
[Black "Parkhov, Yair"]
[WhiteFideId "1172883"]
[BlackFideId "2813408"]
[WhiteElo "2207"]
[BlackElo "2384"]
[Result "0-1"]
[Round "02"]
[TimeControl "180+1"]
[Date "2022.11.09"]
[WhiteClock "0:00:01"]
[BlackClock "0:00:15"]

1. e4 {[%clk 0:02:58]}  e5 {[%clk 0:03:00]} 2. Bc4 {[%clk 0:02:55]}  Nf6 {[%clk 0:02:57]} 3. d4 {[%clk 0:02:50]}  Nxe4 {[%clk 0:02:28]} 4. dxe5 {[%clk 0:02:43]}  Qh4 {[%clk 0:02:19]} 5. Qf3 {[%clk 0:02:33]}  Ng5 {[%clk 0:02:18]} 6. Qb3 {[%clk 0:02:26]}  Ne6 {[%clk 0:02:06]} 7. Nf3 {[%clk 0:02:23]}  Qe4+ {[%clk 0:02:06]} 8. Be3 {[%clk 0:02:22]}  Nc6 {[%clk 0:02:04]} 9. Nbd2 {[%clk 0:02:15]}  Qg6 {[%clk 0:02:01]} 10. O-O-O {[%clk 0:02:06]}  Be7 {[%clk 0:01:55]} 11. Bd3 {[%clk 0:01:52]}  Qg4 {[%clk 0:01:53]} 12. a3 {[%clk 0:01:46]}  Nc5 {[%clk 0:01:42]} 13. Bxc5 {[%clk 0:01:19]}  Bxc5 {[%clk 0:01:43]} 14. h3 {[%clk 0:01:15]}  Qe6 {[%clk 0:01:42]} 15. Bc4 {[%clk 0:01:14]}  Qe7 {[%clk 0:01:42]} 16. Ne4 {[%clk 0:01:13]}  O-O {[%clk 0:01:42]} 17. Nxc5 {[%clk 0:01:04]}  Qxc5 {[%clk 0:01:42]} 18. Ng5 {[%clk 0:01:04]}  Nxe5 {[%clk 0:01:40]} 19. Bd5 {[%clk 0:00:52]}  c6 {[%clk 0:01:31]} 20. f4 {[%clk 0:00:52]}  cxd5 {[%clk 0:01:09]} 21. fxe5 {[%clk 0:00:48]}  d4 {[%clk 0:01:09]} 22. Nf3 {[%clk 0:00:44]}  d6 {[%clk 0:01:09]} 23. exd6 {[%clk 0:00:42]}  Be6 {[%clk 0:01:09]} 24. Qb4 {[%clk 0:00:38]}  Qd5 {[%clk 0:01:04]} 25. Rxd4 {[%clk 0:00:36]}  Qa2 {[%clk 0:01:04]} 26. Kd2 {[%clk 0:00:32]}  Rac8 {[%clk 0:01:03]} 27. Re1 {[%clk 0:00:23]}  Rfd8 {[%clk 0:01:00]} 28. g4 {[%clk 0:00:17]}  a5 {[%clk 0:00:58]} 29. Qb6 {[%clk 0:00:10]}  h6 {[%clk 0:00:54]} 30. Ne5 {[%clk 0:00:06]}  a4 {[%clk 0:00:47]} 31. Nd3 {[%clk 0:00:06]}  Bb3 {[%clk 0:00:40]} 32. cxb3 {[%clk 0:00:03]}  axb3 {[%clk 0:00:40]} 33. Ree4 {[%clk 0:00:02]}  Qb1 {[%clk 0:00:38]} 34. Ke3 {[%clk 0:00:02]}  Qg1+ {[%clk 0:00:38]} 35. Kf4 {[%clk 0:00:02]}  g5+ {[%clk 0:00:36]} 36. Ke5 {[%clk 0:00:03]}  Re8+ {[%clk 0:00:34]} 37. Kd5 {[%clk 0:00:03]}  Rxe4 {[%clk 0:00:29]} 38. Kxe4 {[%clk 0:00:03]}  Qg2+ {[%clk 0:00:25]} 39. Ke5 {[%clk 0:00:03]}  Re8+ {[%clk 0:00:25]} 40. Kf6 {[%clk 0:00:02]}  Qf3+ {[%clk 0:00:23]} 41. Nf4 {[%clk 0:00:03]}  Re6+ {[%clk 0:00:21]} 42. Kf5 {[%clk 0:00:02]}  gxf4 {[%clk 0:00:19]} 43. Qd8+ {[%clk 0:00:03]}  Kg7 {[%clk 0:00:19]} 44. d7 {[%clk 0:00:02]}  Qc6 {[%clk 0:00:15]} 45. Kxf4 {[%clk 0:00:02]}  Qc1+ {[%clk 0:00:15]} 46. Kf3 {[%clk 0:00:01]}  Qe3+ {[%clk 0:00:15]} 47. Kg2 {[%clk 0:00:02]}  Qxd4 {[%clk 0:00:15]} 48. Qh4 {[%clk 0:00:01]}  Re2+ {[%clk 0:00:15]} 0-1


[Site "https://www.chess.com"]

[Event "Titled Tuesday Blitz November 08 Early 2022"]
[White "Salman, Pavel"]
[Black "Pinero Rodriguez, Carlos Jose"]
[WhiteFideId "24153753"]
[BlackFideId "3901726"]
[WhiteElo "2187"]
[BlackElo "2146"]
[Result "1-0"]
[Round "02"]
[TimeControl "180+1"]
[Date "2022.11.09"]
[WhiteClock "0:01:25"]
[BlackClock "0:02:23"]

1. d4 {[%clk 0:03:00]}  Nf6 {[%clk 0:02:54]} 2. Nc3 {[%clk 0:03:00]}  e6 {[%clk 0:02:54]} 3. g3 {[%clk 0:02:58]}  d5 {[%clk 0:02:53]} 4. Bg2 {[%clk 0:02:58]}  Be7 {[%clk 0:02:54]} 5. Bf4 {[%clk 0:02:58]}  O-O {[%clk 0:02:54]} 6. Nf3 {[%clk 0:02:57]}  b6 {[%clk 0:02:53]} 7. Ne5 {[%clk 0:02:56]}  a6 {[%clk 0:02:53]} 8. e4 {[%clk 0:02:52]}  Bb7 {[%clk 0:02:52]} 9. Qe2 {[%clk 0:02:48]}  Nbd7 {[%clk 0:02:46]} 10. O-O-O {[%clk 0:02:45]}  Bb4 {[%clk 0:02:46]} 11. Nxd7 {[%clk 0:02:27]}  Qxd7 {[%clk 0:02:46]} 12. e5 {[%clk 0:02:24]}  Bxc3 {[%clk 0:02:45]} 13. exf6 {[%clk 0:02:23]}  Bb4 {[%clk 0:02:40]} 14. Qg4 {[%clk 0:01:53]}  g6 {[%clk 0:02:37]} 15. h4 {[%clk 0:01:50]}  Rfd8 {[%clk 0:02:37]} 16. h5 {[%clk 0:01:48]}  Bd6 {[%clk 0:02:29]} 17. hxg6 {[%clk 0:01:37]}  fxg6 {[%clk 0:02:29]} 18. Rh6 {[%clk 0:01:35]}  Qf7 {[%clk 0:02:28]} 19. Rdh1 {[%clk 0:01:31]}  Bc8 {[%clk 0:02:22]} 20. Rxh7 {[%clk 0:01:24]}  Qxh7 {[%clk 0:02:23]} 21. Rxh7 {[%clk 0:01:24]}  Kxh7 {[%clk 0:02:23]} 22. Qh4+ {[%clk 0:01:25]}  Kg8 {[%clk 0:02:23]} 1-0


[Site "https://www.chess.com"]